Cogmind - Beta 16 @@@ ROGUE MODE // 2026.01.07 @ 05:09:25 Player: Oneirical Result: Destroyed by P-70 Sage with Tesla Rifle Performance ------------- Evolutions (6) 3000 Regions Visited (28) 5600 Robots Destroyed (238) 1190 Value Destroyed (9142) 9142 Prototype IDs (70) 1400 Alien Tech Used (0) 0 Bonus (5735) 5735 TOTAL SCORE: 26067 Bonus ------- High Alert Combat Kills 518 Follower Combat Kills 883 Awakened Behemoth Slayer 1000 Entered Garrisons 200 Aligned with FarCom 300 Met Data Miner 300 Met Imprinter 300 Destroyed Z-Imprinter 1000 Triggered Deep Caves Wall 500 Built Enhanced Grunts 300 Met R17 at Cetus 500 Friendly Fire -66 Cogmind --------- Core Integrity 0/1150 Matter 290/300 Energy 16/100 System Corruption 32% Temperature Cool (0) Movement Core (200) Ox3 Location -4/Armory Parts ------- > --- POWER (2) -------- (None) > --- PROPULSION (6) --- Antigrav System Antigrav System > --- UTILITY (8) ------ Improved Heat Sink Advanced Terrain Scan Processor Graphene Brace Advanced Hacking Suite Authchip [Propulsion] Authchip [Device] > --- WEAPON (3) ------- Enhanced Force Lance CR-A16's Behemoth Slayer > --- INVENTORY (5) ---- Quantum Reactor High-capacity Storage Unit Seismic Detector Hacking Drone Bay (1/1) Peak State ------------ > --- POWER ------------ Assembled Flux Generator > --- PROPULSION ------- Centrium Heavy Treads Centrium Heavy Treads Shield Leg Shield Leg > --- UTILITY ---------- High-capacity Storage Unit Assembled Biocell Array Centrium Medium Armor Plating Centrium Medium Armor Plating Assembled Alloy Armor Medium Regenerative Plating Experimental Thermal Shield Advanced Hacking Suite > --- WEAPON ----------- Assembled Focal Cannon Assembled Focal Cannon Railgun > --- INVENTORY -------- Shield Leg Advanced Cooling System Advanced Energy Well Makeshift Trap Scanner Surveybot 24 Scanner Improved Hacking Suite Hacking Drone Bay Advanced KE Penetrator Advanced KE Penetrator Advanced KE Penetrator Tri-rail Accelerator Heavy Missile Launcher Smartbomb Launcher Field Lobotomy Kit Plasma Cutter RU-N14's Throwing Claymores RU-N14's Throwing Claymores CR-A16's Behemoth Slayer [Rating: 164] Favorites ----------- Power Fusion Compressor Engine Heavy Ion Engine Power Core Fusion Compressor Reactor Assembled Flux Generator Propulsion Improved Flight Unit Treads Light Treads Leg Assembled Alloy Leg Wheel Compact Wheel Hover Unit Combat Linear Gravjet Flight Unit Improved Flight Unit Utility Advanced Hacking Suite Device Advanced Sensor Array Storage High-capacity Storage Unit Processor Improved Signal Interpreter Hackware Advanced Hacking Suite Protection Medium Regenerative Plating Weapon Assembled Focal Cannon Energy Gun Small Laser Energy Cannon Assembled Focal Cannon Ballistic Gun 8R-AWN's Boregun Ballistic Cannon Tri-rail Accelerator Launcher Heavy Missile Launcher Special Weapon RU-N14's Throwing Claymores Impact Weapon Power Maul Slashing Weapon Ripper Piercing Weapon CR-A16's Behemoth Slayer Build | -11 -10 -10 -9 -9 -9 -8 -8 -7 -7 -7 -7 -6 -6 -6 -6 -6 -6 -6 -6 -5 -5 -5 -5 -5 -4 -4 -4 -4 ------- Run | Yrd Mat Min Mat Min Exi Min Mat Fac Low Low Dat Pro Fac Was Fac Low Low Zio Dee Pro Fac Ext Cet Arc Fac Gar Fac Arm Slots Evolved 12 | . . . 2 . . . 2 2 . . . . 2 . . . . . . . 2 . . . 2 . . . Power 1 | . . . . . . . . . . . . . . . . . . . . . 1 . . . . . . . Propulsion 4 | . . . 1 . . . 1 . . . . . . . . . . . . . . . . . 2 . . . Utility 6 | . . . . . . . 1 2 . . . . 2 . . . . . . . 1 . . . . . . . Weapon 1 | . . . 1 . . . . . . . . . . . . . . . . . . . . . . . . . Parts Attached 214 | 6 6 4 15 7 18 . 10 9 . . . . 11 2 9 2 . 5 4 4 3 7 14 1 20 14 15 28 Power 27 | 1 1 1 2 . 4 . . . . . . . 2 . 1 1 . . . . . . . . 4 3 . 7 Engine 9 | 1 1 . 2 . 2 . . . . . . . 1 . . . . . . . . . . . 2 . . . Core 9 | . . 1 . . 1 . . . . . . . 1 . 1 1 . . . . . . . . 2 1 . 1 Reactor 9 | . . . . . 1 . . . . . . . . . . . . . . . . . . . . 2 . 6 Propulsion 50 | 1 1 1 4 2 5 . 3 3 . . . . . . . 1 . 2 . 1 1 2 2 . 6 3 6 6 Treads 19 | 1 1 . 4 2 2 . . . . . . . . . . . . 1 . 1 . . 2 . 1 2 2 . Leg 15 | . . 1 . . 3 . 1 . . . . . . . . . . 1 . . 1 2 . . 4 1 . 1 Wheel 1 | . . . . . . . . . . . . . . . . . . . . . . . . . 1 . . . Hover 10 | . . . . . . . 1 . . . . . . . . . . . . . . . . . . . 4 5 Flight 5 | . . . . . . . 1 3 . . . . . . . 1 . . . . . . . . . . . . Utility 82 | 2 2 . 3 3 5 . 1 5 . . . . 8 2 3 . . 1 2 3 2 3 8 . 7 4 8 10 Device 34 | 1 1 . . 1 3 . . 1 . . . . 1 1 1 . . . 1 2 1 1 1 . 4 4 7 3 Storage 8 | 1 . . 2 . 1 . . 1 . . . . . . . . . 1 . . . . 1 . . . . 1 Processor 14 | . 1 . . . . . 1 1 . . . . . . 1 . . . 1 . 1 1 . . 2 . 1 4 Hackware 13 | . . . . . . . . 2 . . . . 6 1 1 . . . . . . . 1 . . . . 2 Protection 13 | . . . 1 2 1 . . . . . . . 1 . . . . . . 1 . 1 5 . 1 . . . Artifact . | . . . . . . . . . . . . . . . . . . . . . . . . . . . . . Weapon 55 | 2 2 2 6 2 4 . 6 1 . . . . 1 . 5 . . 2 2 . . 2 4 1 3 4 1 5 Energy Gun 5 | 1 . . . . . . 3 . . . . . . . . . . . . . . . 1 . . . . . Energy Cannon 7 | . . . . . . . . . . . . . . . . . . . . . . . 1 . . 3 1 2 Ballistic Gun 17 | 1 . . 4 2 4 . 1 . . . . . . . . . . . . . . . 1 1 2 . . 1 Ballistic Cannon 2 | . . . . . . . . . . . . . . . 1 . . . . . . . . . . 1 . . Launcher 7 | . 1 . 2 . . . 1 . . . . . . . 2 . . . . . . 1 . . . . . . Special Weapon 8 | . 1 . . . . . . 1 . . . . . . 1 . . 1 2 . . 1 1 . . . . . Impact Weapon 1 | . . . . . . . . . . . . . 1 . . . . . . . . . . . . . . . Slashing Weapon 4 | . . 2 . . . . 1 . . . . . . . 1 . . . . . . . . . . . . . Piercing Weapon 4 | . . . . . . . . . . . . . . . . . . 1 . . . . . . 1 . . 2 Special Melee Weapon . | . . . . . . . . . . . . . . . . . . . . . . . . . . . . . Unidentified Prototypes 26 | . . . 2 . 5 . 6 . . . . . 1 1 . . . 1 . . . 1 7 . 2 . . . Parts Lost 81 | . 3 1 1 3 6 . . . . . . 1 2 . 5 1 . . 9 2 . 7 1 . 9 2 11 17 Power 10 | . 1 . . . 1 . . . . . . . . . 1 . . . . 1 . . . . 2 . 2 2 Propulsion 22 | . . 1 . 2 1 . . . . . . . . . . 1 . . 4 . . 2 . . 1 . 3 7 Utility 33 | . . . . 1 2 . . . . . . . 2 . 4 . . . 5 . . 4 1 . 4 2 2 6 Weapon 16 | . 2 . 1 . 2 . . . . . . 1 . . . . . . . 1 . 1 . . 2 . 4 2 Highest Loss Streak 6 | . 2 1 1 1 6 . . . . . . 1 1 . 3 1 . . 5 2 . 3 1 . 4 1 5 6 To Critical Strikes 4 | . . . . . 4 . . . . . . . . . . . . . . . . . . . . . . . Average Backups 14 | . 4 5 10 14 12 28 33 8 9 9 10 9 9 9 8 6 6 12 14 16 17 17 17 18 16 17 16 12 Power . | . . . . . 1 2 1 . . . . . . . . 1 . . . . . . . . . . . 1 Propulsion 1 | . . . 1 3 2 7 10 . . . . . . . 1 1 1 1 1 . . . . . . . 1 . Utility 5 | . 2 3 3 3 4 13 14 5 7 7 7 7 6 6 4 2 3 3 4 5 6 6 5 6 6 7 6 5 Weapon 6 | . 1 1 4 8 4 6 7 2 2 2 3 2 2 2 2 2 1 7 8 8 8 8 8 10 7 6 6 4 Tool/Special . | . . . . . . . . . . . . . . . . . . . . . . . . . . . . . Unused Backups 69 | . . . 8 1 9 . 4 10 . . . . 4 1 2 . 1 1 3 . . 2 4 1 2 5 1 10 Power 9 | . . . 1 . 3 . 1 . . . . . . . . . . . . . . . 1 . . 1 . 2 Propulsion 16 | . . . 2 . 4 . . 6 . . . . . . 1 . . 1 . . . . 1 . 1 . . . Utility 20 | . . . 2 1 2 . 2 3 . . . . 3 1 . . . . . . . 1 . . 1 . 1 3 Weapon 22 | . . . 3 . . . 1 1 . . . . . . 1 . 1 . 3 . . 1 2 1 . 3 . 5 Tool/Special 2 | . . . . . . . . . . . . . 1 . . . . . . . . . . . . 1 . . Average Slot Usage (%) 88 | . 85 99 92 99 92 88 89 81 87 86 84 83 82 86 85 97 100 99 87 76 87 83 84 82 79 84 83 78 Engine 1 | . 12 10 5 11 6 . . . . . . . . . . . . . . . . . . . . . . . Core 4 | . . 3 5 . 3 11 9 7 7 7 7 7 5 6 5 6 6 6 5 1 . . . . 2 8 . . Reactor 1 | . . . . . . . . . . . . . . . . . . . . . 4 5 4 5 2 1 9 5 Treads 8 | . 24 24 30 32 18 . . . . . . . . . . . . . 5 2 . . 3 11 10 15 13 5 Leg 8 | . . 3 1 . 14 33 35 2 . . . . . . . . . . 5 19 22 22 14 . 5 3 . . Flight 8 | . . . . . . . . 27 30 30 30 30 26 26 26 26 26 26 12 . . . . . . . . . Device 8 | . 13 14 4 . 6 . . 5 7 7 7 7 5 6 7 10 13 13 3 17 16 13 8 5 6 12 17 13 Storage 8 | . 14 14 11 11 6 11 9 5 7 7 7 7 6 6 6 6 6 6 5 11 11 11 11 11 10 7 4 3 Processor 4 | . . . . . . . 8 7 7 7 7 7 6 6 7 6 6 6 8 . 4 3 . . 3 5 8 9 Hackware 8 | . . . . . . . . 12 15 15 15 15 25 26 21 22 20 20 19 1 . . 2 5 5 5 5 6 Protection 4 | . . . 6 10 3 . . . . . . . . . 1 . . . . 4 5 7 18 23 14 8 4 4 Energy Cannon 2 | . . . . . . . . . . . . . . . . . . . . 11 14 14 12 11 7 2 4 4 Ballistic Gun 8 | . 4 . 6 28 27 33 24 2 1 1 . . . . . 3 6 5 3 . . . 2 2 6 3 4 2 Launcher 2 | . 11 9 1 2 3 . . . . . . . . . . . 6 5 . . 2 . . . . . . . Special Weapon 2 | . . 9 1 . . . . 5 7 7 7 6 . . . 6 . 4 12 . . . . . . . . . Slashing Weapon 2 | . . 8 18 1 2 . 2 2 . . . . . . . 6 6 . 1 1 . . . . . . . . Peak Build Rating 164 | 6 7 15 21 21 56 56 64 45 52 52 40 40 57 61 75 75 77 82 89 118 137 146 154 151 164 154 153 132 Average Rating 78 | 5 6 9 17 18 35 56 58 39 41 41 39 38 49 59 59 69 77 78 76 104 132 133 145 151 142 140 142 108 On Entrance 65 | . 6 7 15 20 21 56 56 59 40 39 39 40 37 57 60 63 75 77 81 29 103 137 134 151 151 127 145 86 Avg Prop Armor Cover (%) 6 | . . 10 9 . 8 . . 3 . . . . . . 2 . . 2 13 16 4 6 5 . 7 1 2 6 Naked Turns . | . . . . . . . . . . . . . . . . . . . . . . . . . . . . . Heaviest Build 221 | 11 15 17 45 44 220 220 221 24 30 20 23 23 23 18 27 27 33 63 71 99 142 144 152 146 149 142 143 124 Greatest Support 225 | 20 40 40 63 66 80 80 100 100 20 20 20 20 20 20 20 21 21 21 16 76 99 99 160 160 188 225 225 54 Greatest Overweight (x) 6 | . . . . . 2 2 2 1 1 . 1 1 1 . 1 1 1 6 4 6 1 2 2 . 2 . 1 3 Average Overweight (x) . | . . . . . . 2 2 . . . . . . . . . 1 3 2 1 1 1 1 . . . . . Largest Inventory Capacity 35 | 8 8 8 15 15 35 35 35 10 10 10 10 10 10 10 10 10 10 20 20 20 20 20 20 20 20 20 20 25 Average Capacity 17 | 7 8 8 10 15 16 35 35 9 10 10 10 10 10 10 10 10 10 18 18 20 20 20 20 20 20 20 19 15 Most Carried 35 | 2 6 8 15 15 30 30 35 10 10 10 10 10 10 10 10 10 10 20 20 19 20 20 20 20 20 20 20 20 Average Carried 16 | . 4 5 10 14 13 30 34 8 9 9 9 9 9 9 9 9 9 16 18 17 18 19 19 19 18 19 18 13 Final Capacity 35 | 8 8 8 15 15 35 35 35 10 10 10 10 10 10 10 10 10 10 20 20 20 20 20 20 20 20 20 20 5 Final Carried 35 | 2 4 8 15 15 30 30 35 9 10 10 9 10 10 10 10 10 10 20 19 16 20 20 20 20 18 20 15 4 Class Distribution -------------------- 13% | Hacker-Skirmisher 12% | Golem 10% | Mutant 8% | Scavenger-Mutant 8% | Hacker-Mutant 7% | Scavenger-Tank 6% | Hacker-Gunner 5% | Scavenger-Gunner 5% | Tank 4% | Hacker-Sprinter 4% | Hauler-Gunner Dominant Class ---------------- Mutant | -10/Materials Scavenger-Mutant | -10/Mines Scavenger-Mutant | -9/Materials Tank | -9/Mines Hauler-Gunner | -9/Exiles Hauler-Gunner | -8/Mines Scavenger-Gunner | -8/Materials Sprinter | -7/Factory Sprinter | -7/Lower Caves Sprinter | -7/Lower Caves Sprinter | -7/Data Miner Sprinter | -6/Proximity Caves Hacker-Sprinter | -6/Factory Hacker-Sprinter | -6/Waste Hacker-Sprinter | -6/Factory Hacker-Mutant | -6/Lower Caves Hacker-Mutant | -6/Lower Caves Hacker-Skirmisher | -6/Zion Hacker-Gunner | -6/Deep Caves Golem | -5/Proximity Caves Golem | -5/Factory Golem | -5/Extension Golem | -5/Cetus Scavenger-Tank | -5/Archives Scavenger-Tank | -4/Factory Scavenger-Mutant | -4/Garrison Skirmisher | -4/Factory Mutant | -4/Armory Resources | -11 -10 -10 -9 -9 -9 -8 -8 -7 -7 -7 -7 -6 -6 -6 -6 -6 -6 -6 -6 -5 -5 -5 -5 -5 -4 -4 -4 -4 ----------- Run | Yrd Mat Min Mat Min Exi Min Mat Fac Low Low Dat Pro Fac Was Fac Low Low Zio Dee Pro Fac Ext Cet Arc Fac Gar Fac Arm Matter Collected 8641 | 275 58 86 343 371 1533 32 706 116 151 222 . 36 71 204 110 261 122 109 109 261 74 324 389 54 662 552 771 639 Remotely . | . . . . . . . . . . . . . . . . . . . . . . . . . . . . . Salvage Created 10720 | 98 306 40 1061 396 587 45 1024 65 . . . . 49 . 92 88 160 . 30 254 74 747 965 376 1565 837 1105 756 Parts 583 | 11 23 2 71 20 80 6 57 4 . . . . . . 9 . 11 . . 8 4 37 46 17 67 31 46 33 Haulers Intercepted 10 | . 1 . 3 . . . 4 . . . . . . . . . . . . . . . . . 2 . . . Recyclers Shooed 5 | . . . 1 . . . . . . . . . . . . . . . . . . . . . 2 . 2 . Parts Field Recycled . | . . . . . . . . . . . . . . . . . . . . . . . . . . . . . Retrieved Matter . | . . . . . . . . . . . . . . . . . . . . . . . . . . . . . Parts Self-Destructed 15 | . . . . . . . . . . 4 . . . . . . 3 2 . 6 . . . . . . . . Prevented . | . . . . . . . . . . . . . . . . . . . . . . . . . . . . . Parts Restored . | . . . . . . . . . . . . . . . . . . . . . . . . . . . . . Kills | -11 -10 -10 -9 -9 -9 -8 -8 -7 -7 -7 -7 -6 -6 -6 -6 -6 -6 -6 -6 -5 -5 -5 -5 -5 -4 -4 -4 -4 ------- Run | Yrd Mat Min Mat Min Exi Min Mat Fac Low Low Dat Pro Fac Was Fac Low Low Zio Dee Pro Fac Ext Cet Arc Fac Gar Fac Arm Combat Hostiles Destroyed 192 | . 7 1 27 27 6 3 14 . . . . . . . 5 . 4 . 1 7 1 12 16 2 17 19 13 10 Melee 23 | . . 1 17 . . . . . . . . . . . 1 . . . . . . . . . . . . 4 Guns 51 | . 2 . . 8 4 3 14 . . . . . . . . . . . . . . . 4 . 9 5 1 1 Cannons 46 | . . . . . . . . . . . . . . . 1 . . . . 3 1 9 12 2 5 4 6 3 AOE 63 | . 5 . 10 19 2 . . . . . . . . . 3 . 4 . 1 3 . 3 . . 3 9 1 . Classes Destroyed 23 | 1 5 . 4 1 2 . 1 . . . . . . . 2 2 . . . 1 . . 1 . 1 . 1 1 Worker 6 | . . . 1 . . . . . . . . . 3 . . . . . . . . . . . 2 . . . Builder 8 | . 1 . 1 . . . . . . . . . . . . . . . . . . 1 . . 4 . 1 . Tunneler 7 | 5 . . . . . . . . . . . . 1 . . . . . . . . . . . 1 . . . Hauler 10 | . 1 . 3 . . . 4 . . . . . . . . . . . . . . . . . 2 . . . Recycler 12 | . 1 . 1 1 . . 1 1 . . . . . . . . . . . . . 1 . . 3 . 3 . Minesweeper 1 | . . . . . . . . . . . . . . . . 1 . . . . . . . . . . . . Mechanic 2 | . . . . . . . . . . . . . . . . . . . . . . . . . 1 . . 1 Operator 7 | . . . . . . . . . . . . . . . 1 . . . . . . . . 6 . . . . Turret 1 | . . . . . 1 . . . . . . . . . . . . . . . . . . . . . . . Watcher 4 | . . . 1 . . . 1 . . . . . . . . . . . . . . . 1 . . . 1 . Swarmer 48 | . 3 . 11 4 . 3 . . . . . . . . 3 . 4 . . . . 4 4 . 8 4 . . Saboteur 1 | . . . . . . . . . . . . . . . . . . . . . . . . . . . 1 . Grunt 47 | . 4 1 11 4 . . 7 . . . . . . . . . . . . 5 . 1 2 . . 6 2 4 Brawler 2 | . . . . . . . 2 . . . . . . . . . . . . . . . . . . . . . Duelist 2 | . . . 1 . . . . . . . . . . . . . . . . . . . . . . 1 . . Sentry 25 | . . . 4 . . . 5 . . . . . . . . . . . . 1 1 6 . 2 3 2 . 1 Specialist 1 | . . . . . . . . . . . . . . . . . . . . . . . . . . . . 1 Hunter 15 | . . . . . . . . . . . . . . . . . . . . . . . 3 . 2 4 6 . Programmer 17 | . . . . . . . . . . . . . . . 2 . . . . . . . 1 . 4 1 4 5 Behemoth 2 | . . . . . . . . . . . . . . . . . . . . 1 . . . . . 1 . . Cetus Guard 6 | . . . . . . . . . . . . . . . . . . . . . . . 6 . . . . . Zionite 8 | . . . . . 8 . . . . . . . . . . . . . . . . . . . . . . . Z-Technician 5 | . . . . . . . . . . . . . . . . . . . 5 . . . . . . . . . Samaritan 3 | . . . . . . . . . . . . . . . . 1 2 . . . . . . . . . . . Assembled 23 | . . . . 18 5 . . . . . . . . . . . . . . . . . . . . . . . Thug 1 | . . . . . . . . . . . . . . . . . . . . . . 1 . . . . . . Best Kill Streak 17 | 3 5 1 5 17 12 3 4 1 . . . . 2 . 4 1 4 . 5 5 1 4 4 2 7 8 5 3 Combat Bots Only 17 | . 3 1 5 17 4 3 3 . . . . . . . 4 . 4 . 1 5 1 4 4 2 6 8 4 3 Max Kills in Single Turn 5 | 1 4 1 5 4 2 1 1 1 . . . . 1 . 2 1 3 . 5 2 1 3 1 1 4 3 3 1 Gunslinging . | . . . . . . . . . . . . . . . . . . . . . . . . . . . . . Exploded 4 | . 3 . 4 4 1 . . . . . . . . . 2 . 3 . 1 2 . 3 . . 3 3 1 . Melee 1 | . . 1 1 . . . . . . . . . . . 1 . . . . . . . . . . . . 1 Uniques/NPCs Destroyed 6 | . . . . 1 4 . . . . . . . . . . . . . 1 . . . . . . . . . YI-UF0 (-9/Mines) 8R-AWN (-9/Exiles) EX-DEC (-9/Exiles) EX-BIN (-9/Exiles) EX-HEX (-9/Exiles) Z-Imprinter (-6/Deep Caves) Combat | -11 -10 -10 -9 -9 -9 -8 -8 -7 -7 -7 -7 -6 -6 -6 -6 -6 -6 -6 -6 -5 -5 -5 -5 -5 -4 -4 -4 -4 -------- Run | Yrd Mat Min Mat Min Exi Min Mat Fac Low Low Dat Pro Fac Was Fac Low Low Zio Dee Pro Fac Ext Cet Arc Fac Gar Fac Arm Hostile Shots Fired 1795 | . 52 4 90 52 67 5 58 . . . . 26 22 . 87 6 5 . 31 72 4 137 165 6 150 186 357 213 Missed 491 | . 10 1 21 13 9 2 16 . . . . 16 15 . 43 2 1 . 12 21 . 11 45 5 17 52 107 72 Hits 1304 | . 42 3 69 39 58 3 42 . . . . 10 7 . 44 4 4 . 19 51 4 126 120 1 133 134 250 141 Melee 18 | . . . 1 . . . . . . . . . . . . . . . 5 . . . 2 . . 5 5 . Projectile 1286 | . 42 3 68 39 58 3 42 . . . . 10 7 . 44 4 4 . 14 51 4 126 118 1 133 129 245 141 AOE 8 | . . . . 7 . . . . . . . . . . . . . . . . . . . . . . . 1 Critical Strikes 107 | . . . 4 . 27 . 2 . . . . . 1 . 4 . . . . 5 . 25 7 . 15 8 6 3 Actively Blocked 5 | . . . . . . . . . . . . . . . . . . . . . . . . . . . 2 3 Part Disruptions 3 | . . . . . . . . . . . . . . . . . . . . . . . . . 1 . 2 . Damage Taken 21931 | . 524 49 954 612 1030 21 629 . . . . 131 85 . 618 72 150 . 632 1082 75 2241 1894 22 2703 1653 4390 2364 Core 2775 | . 126 . 182 84 82 . 45 . . . . 28 36 . 116 12 98 . 209 143 . 272 172 . 170 86 335 579 Absorbed by Shields 1661 | . . . . . . . . . . . . . . . . . . . . . . 391 63 . . 713 494 . Reduced by Siege Mode 262 | . . . . . . . . . . . . . . . . . . . . . . . . . 39 85 138 . Ignored by Resistances 1391 | . . . . . . . . . . . . . . . . . . . . 209 16 458 403 5 300 . . . Regen/Repaired (Parts) 2184 | . . . 102 . . . 84 . . . . . . . . . . . . . . 153 336 7 84 318 710 390 Core Remaining (%) 61 | 100 . 49 . . . 13 91 . . . . 96 . . . . . . . 27 . . . 55 . . . . Volleys Fired 623 | 15 27 . 11 28 88 3 47 1 18 24 . . . . 9 3 2 . 7 10 11 46 50 22 72 36 54 39 Largest 3 | 2 2 . 3 3 3 3 3 2 1 1 . . . . 1 1 2 . 3 3 3 3 3 3 3 3 3 3 Hottest 249 | 60 100 . 83 69 76 76 71 46 30 30 . . . . 60 60 69 . 60 89 75 85 130 130 95 213 240 249 Shots Fired 1263 | 30 42 . 21 73 208 9 140 2 18 24 . . . . 9 3 3 . 10 19 16 102 120 60 141 59 105 49 Gun 712 | 30 37 . 17 57 205 9 140 2 18 24 . . . . . . 1 . 1 . . . 37 16 71 15 24 8 Cannon 482 | . . . . . . . . . . . . . . . 5 3 . . 3 14 16 96 82 44 68 32 78 41 Launcher 47 | . 3 . 4 16 3 . . . . . . . . . 4 . 2 . . 5 . 2 . . 1 7 . . Special 22 | . 2 . . . . . . . . . . . . . . . . . 6 . . 4 1 . 1 5 3 . Kinetic 749 | 15 24 . 17 57 205 9 140 2 18 24 . . . . 5 3 1 . 4 4 . 5 34 11 71 34 54 12 Thermal 430 | 15 15 . . . . . . . . . . . . . . . . . . 10 16 91 85 49 68 6 48 27 Explosive 63 | . 3 . 4 16 3 . . . . . . . . . 4 . 2 . 6 5 . 6 . . 2 12 . . Electromagnetic 17 | . . . . . . . . . . . . . . . . . . . . . . . . . . 7 . 10 Robot Hit Streak 23 | 9 11 . 6 15 10 5 23 5 . . . . . . 3 . . . 3 11 3 18 11 9 18 13 14 10 Robot Miss Streak 6 | 1 4 . 2 3 6 1 5 . . . . . . . 3 . . . 1 1 1 3 6 3 5 5 2 4 Penetration Max 1 | . . . . . . . . . . . . . . . . . . . . . . . 1 1 1 1 1 . Secondary Targets 3 | . . . . . . 1 2 . . . . . . . . . . . . . . . . . . . . . Max Gunslinging Chain 1 | . . . . . . 1 1 . . . . . . . . . . . . . . . . . . . . . Shots Hit Robots 830 | 22 29 2 60 46 138 5 96 2 . . . . 4 . 11 4 2 . 5 19 3 59 67 41 89 43 57 26 Core Hits 447 | 7 19 1 36 50 45 3 35 2 . . . . . . 9 2 9 . 7 16 2 25 31 16 35 43 39 15 Critical Kills 23 | . . . . 1 3 1 4 . . . . . . . . . . . . . . . 4 . 5 2 2 1 Critical Parts Destroyed 37 | . . . . . 7 . 4 . . . . . 1 . 2 . 1 . . . . . 4 2 13 1 2 . Critical Strikes 76 | . . . 8 1 12 1 9 . . . . . 1 . 2 . 1 . 1 . . . 8 2 19 4 4 3 Meltdown 3 | . . . . . . . . . . . . . . . . . . . . . . . . . . . 2 1 Destroy 55 | . . . . 1 10 1 8 . . . . . . . . . 1 . . . . . 8 2 19 3 2 . Smash 3 | . . . . . . . . . . . . . 1 . 2 . . . . . . . . . . . . . Sever 13 | . . . 8 . 2 . 1 . . . . . . . . . . . 1 . . . . . . 1 . . Impale 2 | . . . . . . . . . . . . . . . . . . . . . . . . . . . . 2 Melee Attacks 300 | . . 3 77 2 10 . 9 8 3 2 . . 40 3 35 21 2 . 10 9 . . . . 3 24 3 36 Impact 70 | . . . . . . . . . . . . . 33 3 34 . . . . . . . . . . . . . Slashing 155 | . . 3 77 2 10 . 9 8 3 2 . . 7 . 1 21 2 . 10 . . . . . . . . . Piercing 75 | . . . . . . . . . . . . . . . . . . . . 9 . . . . 3 24 3 36 Sneak Attacks 15 | . . . 5 . . . . . . . . . 4 . 1 2 2 . . . . . . . . . . 1 Combat Hostiles . | . . . . . . . . . . . . . . . . . . . . . . . . . . . . . Follow-up Attacks 7 | . . . 6 . . . . . . . . . . . . . . . . . . . . . . . . 1 Damage Inflicted 35171 | 218 572 81 2615 2036 2824 77 1534 25 . . . . 380 . 778 260 440 . 2754 1335 140 3199 2711 1744 3916 3076 2993 1463 Guns 8105 | 218 245 . 162 586 1892 77 1501 25 . . . . . . . . 13 . . . . . 313 263 1724 371 546 169 Cannons 12860 | . . . . . . . . . . . . . . . 135 . . . . 403 140 2761 2398 1481 1860 1104 1775 803 Explosions 9469 | . 327 . 529 1450 238 . . . . . . . . . 389 . 260 . 2500 730 . 398 . . 320 1540 665 123 Melee 4490 | . . 81 1924 . 694 . 33 . . . . . 380 . 254 260 167 . 96 202 . . . . . 31 . 368 Ramming 19 | . . . . . . . . . . . . . . . . . . . . . . . . . 12 . 7 . Kinetic 9646 | 95 144 . 162 586 1892 77 1501 25 . . . . . . 135 . 13 . . 126 . 246 218 210 1724 1038 1082 372 Thermal 12867 | 123 101 . . . . . . . . . . . . . . . . . 2120 277 140 2515 2493 1534 1860 212 1239 253 Explosive 6684 | . 327 . 529 1450 238 . . . . . . . . . 389 . 260 . 380 730 . 398 . . 320 1540 . 123 Electromagnetic 1237 | . . . . . . . . . . . . . . . . . . . . . . . . . . 225 665 347 Impact 532 | . . . . . . . . . . . . . 380 . 152 . . . . . . . . . . . . . Slashing 3585 | . . 81 1924 . 694 . 33 . . . . . . . 102 260 167 . 254 . . 40 . . . 30 . . Piercing 601 | . . . . . . . . . . . . . . . . . . . . 202 . . . . . 31 . 368 Highest Corruption 31 | . . . . . . . . . . . . . . . 2 2 2 2 12 12 . . . . 14 18 24 31 Average Corruption 14 | . . . . . . . . . . . . . . . 1 2 2 2 7 12 . . . . 6 14 19 26 Corruption Purged . | . . . . . . . . . . . . . . . . . . . . . . . . . . . . . Corruption Blocked . | . . . . . . . . . . . . . . . . . . . . . . . . . . . . . Effects 258 | . . . . . . . . . . . . . . . 2 8 4 . . 59 . . . . 21 40 54 70 Message Errors 53 | . . . . . . . . . . . . . . . 1 2 . . . 11 . . . . 3 9 11 16 Matter Fused 52 | . . . . . . . . . . . . . . . . 1 1 . . 17 . . . . 3 11 4 15 Heat Flow Errors 35 | . . . . . . . . . . . . . . . . 3 1 . . 6 . . . . 4 6 7 8 Energy Discharges 41 | . . . . . . . . . . . . . . . . 2 2 . . 10 . . . . 4 5 7 11 Parts Rejected 7 | . . . . . . . . . . . . . . . . . . . . 1 . . . . 1 1 2 2 Parts Fused 4 | . . . . . . . . . . . . . . . . . . . . . . . . . 2 . 1 1 Data Loss (minor) 20 | . . . . . . . . . . . . . . . 1 . . . . 4 . . . . 1 4 4 6 Data Loss (major) 17 | . . . . . . . . . . . . . . . . . . . . 3 . . . . 1 2 7 4 Misfires 10 | . . . . . . . . . . . . . . . . . . . . 4 . . . . 1 . 3 2 Alerts 6 | . . . . . . . . . . . . . . . . . . . . 2 . . . . . 1 2 1 Misdirections 4 | . . . . . . . . . . . . . . . . . . . . . . . . . . . 2 2 Weapon Failures 9 | . . . . . . . . . . . . . . . . . . . . 1 . . . . 1 1 4 2 Overload Shots . | . . . . . . . . . . . . . . . . . . . . . . . . . . . . . Overflow Damage 1732 | . . . 151 31 17 . . . . . . . 280 . 166 47 . . 334 9 . . 61 140 190 170 53 83 Projectiles 603 | . . . . . . . . . . . . . . . . . . . 21 9 . . 61 140 190 104 53 25 Explosions 463 | . . . 41 31 11 . . . . . . . . . 89 . . . 222 . . . . . . 66 . 3 Melee 666 | . . . 110 . 6 . . . . . . . 280 . 77 47 . . 91 . . . . . . . . 55 Knockbacks 20 | . . . . . . . . . . . . . 1 . 1 . . . . . . 1 . . . 6 7 4 Impact 1 | . . . . . . . . . . . . . 1 . . . . . . . . . . . . . . . Kinetic 18 | . . . . . . . . . . . . . . . 1 . . . . . . 1 . . . 6 7 3 Secondary 1 | . . . . . . . . . . . . . . . . . . . . . . . . . . . . 1 Self-Inflicted Damage 588 | . 64 . 134 25 . . . . . . . . . . 64 . 83 . . 10 . 58 . . . 66 21 63 Shots 19 | . 2 . 4 1 . . . . . . . . . . 2 . 2 . . 1 . 2 . . . 3 1 1 Rammed 4 | . . . . . . . . . . . . . . . . . . . . . . . . . 1 . 3 . Targets Rammed 4 | . . . . . . . . . . . . . . . . . . . . . . . . . 1 . 3 . Kicked . | . . . . . . . . . . . . . . . . . . . . . . . . . . . . . Crushed . | . . . . . . . . . . . . . . . . . . . . . . . . . . . . . Highest Temperature 462 | 40 159 . 381 118 206 45 72 . . . . . 18 . 60 192 252 . . 216 2 20 120 217 269 300 420 462 Average Temperature 78 | 18 67 . 81 29 84 23 27 . . . . . 18 . 17 62 87 . . 77 2 8 21 52 99 113 88 143 Received Heat Transfer 3717 | . 219 27 360 60 20 . 324 . . . . 6 48 . 105 9 . . 102 1096 18 174 45 . 126 63 273 642 Effects 5 | . . . . . . . . . . . . . . . . . . . . . . . . 2 . . 1 2 Shutdowns 2 | . . . . . . . . . . . . . . . . . . . . . . . . . . . 1 1 Interference 2 | . . . . . . . . . . . . . . . . . . . . . . . . 2 . . . . Matter Decay 1 | . . . . . . . . . . . . . . . . . . . . . . . . . . . . 1 Siege Activations 11 | . . . . . . . . . . . . . . . . . . . . . . . . . 5 4 2 . Total Turns 196 | . . . . . . . . . . . . . . . . . . . . . . . . . 78 60 58 . Longest Duration 45 | . . . . . . . . . . . . . . . . . . . . . . . . . 25 21 45 . Martial Activations . | . . . . . . . . . . . . . . . . . . . . . . . . . . . . . Shielding Activations 1 | . . . . . . . . . . . . . . . . . . . . . . . . . 1 . . . Total Turns 9 | . . . . . . . . . . . . . . . . . . . . . . . . . 9 . . . Longest Duration 9 | . . . . . . . . . . . . . . . . . . . . . . . . . 9 . . . Robots Disrupted . | . . . . . . . . . . . . . . . . . . . . . . . . . . . . . Combat Hostiles . | . . . . . . . . . . . . . . . . . . . . . . . . . . . . . Robots Corrupted 5 | . . . . . . . . . . . . . 1 . . . . . . . . . . . . . 3 1 Combat Hostiles 4 | . . . . . . . . . . . . . . . . . . . . . . . . . . . 3 1 Parts Fried 17 | . . . . . . . . . . . . . 5 . . . . . . . . . 1 . . 1 4 6 Impact Corruptions 9 | . . . . . . . . . . . . . 7 . 2 . . . . . . . . . . . . . Robots Melted 3 | . . . . . . . . . . . . . . . . . . . . . . . . . . . 2 1 Combat Hostiles 2 | . . . . . . . . . . . . . . . . . . . . . . . . . . . 1 1 Parts Melted 14 | . 1 . . . . . . . . . . . . . . . . . . . 1 3 1 . . . 2 6 Heat Transferred 6639 | 275 225 . . . . . . . . . . . . . . . . . . 150 75 1179 1486 899 981 148 1036 185 Parts Sabotaged . | . . . . . . . . . . . . . . . . . . . . . . . . . . . . . Parts Stolen . | . . . . . . . . . . . . . . . . . . . . . . . . . . . . . Parts Stripped . | . . . . . . . . . . . . . . . . . . . . . . . . . . . . . Power Chain Reactions . | . . . . . . . . . . . . . . . . . . . . . . . . . . . . . Alert | -11 -10 -10 -9 -9 -9 -8 -8 -7 -7 -7 -7 -6 -6 -6 -6 -6 -6 -6 -6 -5 -5 -5 -5 -5 -4 -4 -4 -4 ------- Run | Yrd Mat Min Mat Min Exi Min Mat Fac Low Low Dat Pro Fac Was Fac Low Low Zio Dee Pro Fac Ext Cet Arc Fac Gar Fac Arm Maximum Alert Level 3 | . . . 2 1 . . . . . . . . . . 2 . . . . . . 2 2 1 1 3 2 . Low Security (%) 66 | 100 100 100 46 68 . 100 100 100 . . . . 100 100 70 . . . . . 100 87 74 . 19 . . 100 Level 1 23 | . . . 41 31 . . . . . . . . . . 11 . . . . . . . 19 100 80 47 54 . Level 2 9 | . . . 11 . . . . . . . . . . . 17 . . . . . . 11 5 . . 39 45 . Level 3 . | . . . . . . . . . . . . . . . . . . . . . . . . . . 13 . . Level 4 . | . . . . . . . . . . . . . . . . . . . . . . . . . . . . . Level 5 . | . . . . . . . . . . . . . . . . . . . . . . . . . . . . . High Security . | . . . . . . . . . . . . . . . . . . . . . . . . . . . . . Max Security . | . . . . . . . . . . . . . . . . . . . . . . . . . . . . . Peak Influence 825 | 10 132 30 532 269 . 70 103 49 . . . . 68 18 484 . . . . . 63 499 507 366 372 825 518 186 Initial 369 | . . . . 203 . . 23 . . . . . . 18 . . . . . . 63 7 243 201 93 259 369 186 Average 149 | 1 35 3 193 179 . 25 23 13 . . . . 16 3 138 . . . . . 17 79 137 310 233 517 378 69 Influence Increases 8168 | 25 224 30 822 284 . 70 443 78 . . . 15 290 3 752 110 90 . . 160 54 937 832 264 801 655 598 631 Destroy 0b10 Robot/C 3720 | . 140 20 540 160 . 60 280 . . . . . . . 100 . 80 . . 140 20 400 440 80 360 400 260 240 Destroy 0b10 Robot/NC 310 | 25 15 . 35 5 . . 30 5 . . . . 20 . 5 5 . . . . . 25 10 30 70 . 25 5 Destroy Leader 690 | . 32 10 118 30 . 10 80 . . . . . . . 30 . 10 . . 20 10 42 60 . 86 40 62 50 Allied During Kill 572 | . . . . . . . . . . . . . . . . . . . . . . 203 242 78 13 2 . 34 Successful Hack 277 | . . . 30 . . . 12 6 . . . . 72 . 56 . . . . . . 8 12 . 28 . 11 42 Disable Machine 390 | . 15 . 45 . . . 15 . . . . . . . . . . . . . . 90 . 60 45 15 60 45 Destroy Structure 904 | . 22 . 39 59 . . 11 7 . . . . 33 3 51 . . . . . 24 154 68 16 124 153 60 80 Partial Spotted 135 | . . . 15 . . . . . . . . . 60 . 45 . . . . . . . . . . . 15 . Lose Combat Pursuer 1170 | . . . . 30 . . 15 60 . . . 15 105 . 465 105 . . . . . 15 . . 75 45 105 135 Influence Decreases 8046 | 25 224 30 299 680 127 10 503 49 29 . . 15 238 55 279 408 144 121 . 58 140 518 764 500 698 321 921 890 Entered New Map 2217 | . . . . 320 127 . 37 . 11 . . . . 34 . 176 34 121 . . 39 9 192 302 174 111 335 195 Time Decay 4515 | 25 194 30 289 310 . 10 466 49 18 . . 10 206 21 200 222 110 . . 58 101 310 453 198 374 . 416 445 Lost Part 596 | . 30 . 10 30 . . . . . . . 5 11 . 50 10 . . . . . 60 . . 90 20 110 170 Lost Ally 539 | . . . . 20 . . . . . . . . 21 . . . . . . . . 139 119 . 60 40 60 80 Purge Threat 179 | . . . . . . . . . . . . . . . 29 . . . . . . . . . . 150 . . Squads Dispatched 37 | . 2 1 2 . . . . 3 . . . . 10 . 8 . . . . . . . 1 . 3 . 2 5 Investigation 21 | . . 1 . . . . . 3 . . . . 9 . 6 . . . . . . . 1 . . . 1 . Extermination 6 | . . . . . . . . . . . . . 1 . 1 . . . . . . . . . 2 . . 2 Reinforcement 10 | . 2 . 2 . . . . . . . . . . . 1 . . . . . . . . . 1 . 1 3 Assault . | . . . . . . . . . . . . . . . . . . . . . . . . . . . . . Garrison . | . . . . . . . . . . . . . . . . . . . . . . . . . . . . . Intercept . | . . . . . . . . . . . . . . . . . . . . . . . . . . . . . Searches Triggered . | . . . . . . . . . . . . . . . . . . . . . . . . . . . . . Unchained Authorized 3 | . . . . . . . . . . . . . . . . . . . . . 1 1 . . 1 . . . Data Miner Redirects 4 | . . . . . . . . . . . . . 4 . . . . . . . . . . . . . . . Construction Impeded 2 | . . . 1 . . . . . . . . . . . . . . . . . . . . . 1 . . . Haulers Reinforced . | . . . . . . . . . . . . . . . . . . . . . . . . . . . . . Active Scanning Responses . | . . . . . . . . . . . . . . . . . . . . . . . . . . . . . Cargo Convoy Interrupts 1 | . . . . . . . . . . . . . . . . . . . . . . . . . . . 1 . Stealth | -11 -10 -10 -9 -9 -9 -8 -8 -7 -7 -7 -7 -6 -6 -6 -6 -6 -6 -6 -6 -5 -5 -5 -5 -5 -4 -4 -4 -4 --------- Run | Yrd Mat Min Mat Min Exi Min Mat Fac Low Low Dat Pro Fac Was Fac Low Low Zio Dee Pro Fac Ext Cet Arc Fac Gar Fac Arm Distress Signals 20 | . 2 . 3 . . . 1 . . . . . . . . . . . . . . 3 2 . 1 . 6 2 Communications Jammed . | . . . . . . . . . . . . . . . . . . . . . . . . . . . . . Distress Signals . | . . . . . . . . . . . . . . . . . . . . . . . . . . . . . Times Spotted 441 | . 15 1 48 34 17 3 24 4 . . . 7 18 . 43 4 4 . 25 7 2 29 24 12 29 21 45 25 Peak Tracking Total 37 | . 5 1 6 20 9 3 5 4 . . . 6 5 . 13 7 4 . 37 5 1 6 5 2 4 7 17 14 Tactical Retreats 42 | . . . . 3 3 . 1 2 . . . 1 4 . 8 3 . . 3 . . 1 . . 3 2 5 3 Traps | -11 -10 -10 -9 -9 -9 -8 -8 -7 -7 -7 -7 -6 -6 -6 -6 -6 -6 -6 -6 -5 -5 -5 -5 -5 -4 -4 -4 -4 ------- Run | Yrd Mat Min Mat Min Exi Min Mat Fac Low Low Dat Pro Fac Was Fac Low Low Zio Dee Pro Fac Ext Cet Arc Fac Gar Fac Arm Traps Triggered 3 | . . . . . . . . . . . . . 1 . 1 . . . . . . 1 . . . . . . Indirectly . | . . . . . . . . . . . . . . . . . . . . . . . . . . . . . Trap Hack Attempts . | . . . . . . . . . . . . . . . . . . . . . . . . . . . . . Triggered . | . . . . . . . . . . . . . . . . . . . . . . . . . . . . . Disarmed . | . . . . . . . . . . . . . . . . . . . . . . . . . . . . . Reprogrammed . | . . . . . . . . . . . . . . . . . . . . . . . . . . . . . Reused 3 | . . . . . . . . . . . . . . . . . . . 3 . . . . . . . . . Traps Extracted . | . . . . . . . . . . . . . . . . . . . . . . . . . . . . . Installed 3 | . . . . . . . . . . . . . . . . . . . 3 . . . . . . . . . Triggered . | . . . . . . . . . . . . . . . . . . . . . . . . . . . . . Most Traps Carried 3 | . . . . . . . . . . . . . . . . 3 3 3 3 . . . . . . . . . Machines | -11 -10 -10 -9 -9 -9 -8 -8 -7 -7 -7 -7 -6 -6 -6 -6 -6 -6 -6 -6 -5 -5 -5 -5 -5 -4 -4 -4 -4 ---------- Run | Yrd Mat Min Mat Min Exi Min Mat Fac Low Low Dat Pro Fac Was Fac Low Low Zio Dee Pro Fac Ext Cet Arc Fac Gar Fac Arm Machines Disabled 47 | . 1 . 3 . 13 . 1 . . . . . . . . . . 4 2 . . 6 . 4 3 1 6 3 Max in Single Turn 4 | . 1 . 2 . 2 . 1 . . . . . . . . . . 1 2 . . 4 . 1 1 1 3 1 Garrison Access 2 | . . . . . . . . . . . . . 1 . 1 . . . . . . . . . . . . . Energy Cycler 3 | . . . . . . . . . . . . . . . . . . . . . . 2 . . . . . 1 Machines Repaired . | . . . . . . . . . . . . . . . . . . . . . . . . . . . . . Machines Dismantled 4 | . . . . . . . . . . . . . . . . . . 4 . . . . . . . . . . Machines Sabotaged . | . . . . . . . . . . . . . . . . . . . . . . . . . . . . . Overloaded Fab Kills . | . . . . . . . . . . . . . . . . . . . . . . . . . . . . . Hacking | -11 -10 -10 -9 -9 -9 -8 -8 -7 -7 -7 -7 -6 -6 -6 -6 -6 -6 -6 -6 -5 -5 -5 -5 -5 -4 -4 -4 -4 --------- Run | Yrd Mat Min Mat Min Exi Min Mat Fac Low Low Dat Pro Fac Was Fac Low Low Zio Dee Pro Fac Ext Cet Arc Fac Gar Fac Arm Machines Accessed 72 | . 1 1 8 . 2 . 4 7 . . 3 . 15 . 15 . . . . . 1 1 3 1 3 . 4 3 Terminals 38 | . 1 . 4 . . . 1 7 . . . . 7 . 10 . . . . . . 1 3 . . . 1 3 Fabricators 8 | . . . . . . . . . . . . . 4 . 3 . . . . . . . . . . . 1 . Repair Stations 4 | . . . 1 . . . 1 . . . . . 1 . . . . . . . . . . . . . 1 . Recycling Units 6 | . . . 1 . . . 1 . . . . . 2 . . . . . . . 1 . . . 1 . . . Scanalyzers 5 | . . . 2 . . . 1 . . . . . . . 1 . . . . . . . . . 1 . . . Garrison Access 4 | . . . . . . . . . . . . . 1 . 1 . . . . . . . . . 1 . 1 . Total Hacks 243 | . 5 1 21 . 2 . 12 18 . . 26 . 35 . 59 . . . . . 1 4 8 25 7 . 10 9 Successful 162 | . 3 1 10 . 2 . 7 4 . . 26 . 24 . 38 . . . . . 1 1 3 25 4 . 7 6 Failed 80 | . 2 . 11 . . . 5 14 . . . . 11 . 20 . . . . . . 3 5 . 3 . 3 3 Catastrophic 11 | . . . . . . . . 5 . . . . 3 . 1 . . . . . . . . . . . 1 1 Database Lockouts 1 | . . . . . . . . . . . . . . . 1 . . . . . . . . . . . . . Manual 79 | . . . 3 . 1 . . 12 . . . . 17 . 38 . . . . . . 3 1 . . . 2 2 Terminals 135 | . 5 . 14 . . . 5 18 . . . . 19 . 50 . . . . . . 4 8 . . . 3 9 Fabricators 19 | . . . . . . . . . . . . . 10 . 6 . . . . . . . . . . . 3 . Repair Stations 9 | . . . 3 . . . 2 . . . . . 1 . . . . . . . . . . . . . 3 . Recycling Units 10 | . . . 1 . . . 2 . . . . . 4 . . . . . . . 1 . . . 2 . . . Scanalyzers 11 | . . . 3 . . . 3 . . . . . . . 2 . . . . . . . . . 3 . . . Garrison Access 5 | . . . . . . . . . . . . . 1 . 1 . . . . . . . . . 2 . 1 . Terminal Hacks 111 | . 3 1 5 . 2 . 2 3 . . 26 . 7 . 26 . . . . . . 1 3 25 . . 3 4 Record 47 | . . . 1 . 1 . . . . . 6 . . . 10 . . . . . . 1 2 25 . . . 1 Part Schematic 21 | . . . . . . . . 1 . . 13 . 2 . 5 . . . . . . . . . . . . . Robot Schematic 4 | . . . . . . . . . . . 4 . . . . . . . . . . . . . . . . . Robot Analysis 3 | . 2 . 1 . . . . . . . . . . . . . . . . . . . . . . . . . Prototype ID Bank 4 | . 1 . . . . . . . . . 3 . . . . . . . . . . . . . . . . . Open Door 2 | . . 1 . . . . . . . . . . . . . . . . . . . . 1 . . . . . Branch Access Points 4 | . . . 1 . . . . 1 . . . . . . 1 . . . . . . . . . . . 1 . Emergency Access Points 3 | . . . . . . . 1 . . . . . . . . . . . . . . . . . . . 1 1 Machine Index 2 | . . . . . . . . . . . . . 1 . . . . . . . . . . . . . . 1 Terminal Index 3 | . . . . . . . . 1 . . . . 1 . 1 . . . . . . . . . . . . . Fabricator Index 2 | . . . . . . . . . . . . . 1 . 1 . . . . . . . . . . . . . Recycling Unit Index 1 | . . . . . . . 1 . . . . . . . . . . . . . . . . . . . . . Alert Level 1 | . . . . . . . . . . . . . . . . . . . . . . . . . . . . 1 Unreport Threat 2 | . . . . . . . . . . . . . . . 2 . . . . . . . . . . . . . Locate Traps 1 | . . . . . . . . . . . . . . . 1 . . . . . . . . . . . . . Maintenance Status 1 | . . . . . . . . . . . . . . . 1 . . . . . . . . . . . . . Surveillance Status 1 | . . . . . . . . . . . . . . . 1 . . . . . . . . . . . . . Patrol Status 1 | . . . . . . . . . . . . . . . 1 . . . . . . . . . . . . . Transport Status 1 | . . . . . . . . . . . . . . . 1 . . . . . . . . . . . . . Extermination Status 1 | . . . . . . . . . . . . . 1 . . . . . . . . . . . . . . . Recall Investigation 1 | . . . . . . . . . . . . . . . 1 . . . . . . . . . . . . . Recall Extermination 1 | . . . . . . . . . . . . . 1 . . . . . . . . . . . . . . . Registered Components 1 | . . . 1 . . . . . . . . . . . . . . . . . . . . . . . . . Zone Layout 2 | . . . 1 . . . . . . . . . . . . . . . . . . . . . . . 1 . Proto ID Catalog 1 | . . . . . 1 . . . . . . . . . . . . . . . . . . . . . . . Fabricator Hacks 16 | . . . . . . . . . . . . . 8 . 6 . . . . . . . . . . . 2 . Load Schematic 8 | . . . . . . . . . . . . . 4 . 3 . . . . . . . . . . . 1 . Build 8 | . . . . . . . . . . . . . 4 . 3 . . . . . . . . . . . 1 . Repair Station Hacks 7 | . . . 2 . . . 2 . . . . . 1 . . . . . . . . . . . . . 2 . Scan Component 3 | . . . 1 . . . 1 . . . . . . . . . . . . . . . . . . . 1 . Repair 3 | . . . 1 . . . 1 . . . . . . . . . . . . . . . . . . . 1 . Refit 1 | . . . . . . . . . . . . . 1 . . . . . . . . . . . . . . . Recycling Unit Hacks 4 | . . . . . . . 1 . . . . . 2 . . . . . . . 1 . . . . . . . Retrieve Matter 3 | . . . . . . . . . . . . . 2 . . . . . . . 1 . . . . . . . Retrieve Components 1 | . . . . . . . 1 . . . . . . . . . . . . . . . . . . . . . Scanalyzer 8 | . . . 2 . . . 2 . . . . . . . 1 . . . . . . . . . 3 . . . Insert Component 1 | . . . . . . . 1 . . . . . . . . . . . . . . . . . . . . . Retrieve Study 7 | . . . 2 . . . 1 . . . . . . . 1 . . . . . . . . . 3 . . . Garrison Access Hacks 3 | . . . . . . . . . . . . . 1 . 1 . . . . . . . . . 1 . . . Unlock Access 1 | . . . . . . . . . . . . . . . . . . . . . . . . . 1 . . . Seal Access 2 | . . . . . . . . . . . . . 1 . 1 . . . . . . . . . . . . . Unauthorized Hacks 13 | . . . 1 . . . . 1 . . . . 5 . 4 . . . . . . . . . . . . 2 Terminals 11 | . . . . . . . . 1 . . . . 4 . 4 . . . . . . . . . . . . 2 Assimilate 4 | . . . . . . . . . . . . . 3 . 1 . . . . . . . . . . . . . Botnet 7 | . . . . . . . . 1 . . . . 1 . 3 . . . . . . . . . . . . 2 Fabricators . | . . . . . . . . . . . . . . . . . . . . . . . . . . . . . Repair Stations . | . . . . . . . . . . . . . . . . . . . . . . . . . . . . . Recycling Units 2 | . . . 1 . . . . . . . . . 1 . . . . . . . . . . . . . . . Mask 2 | . . . 1 . . . . . . . . . 1 . . . . . . . . . . . . . . . Scanalyzers . | . . . . . . . . . . . . . . . . . . . . . . . . . . . . . Garrison Access . | . . . . . . . . . . . . . . . . . . . . . . . . . . . . . Data Cores Recovered 1 | . . . . . . . . . . . . . . . 1 . . . . . . . . . . . . . Used 1 | . . . . . . . . . . . . . . . 1 . . . . . . . . . . . . . Hacking Detections 61 | . 1 . 7 . . . 4 7 . . . . 13 . 14 . . . . . . 1 4 . 3 . 4 3 Full Trace Events 20 | . . . . . . . . 3 . . . . 9 . 6 . . . . . . . 1 . . . 1 . Feedback Events 2 | . . . . . . . . . . . . . 1 . 1 . . . . . . . . . . . . . Hackware Fried 2 | . . . . . . . . . . . . . 1 . 1 . . . . . . . . . . . . . Feedback Blocked . | . . . . . . . . . . . . . . . . . . . . . . . . . . . . . Robot Schematics Acquired 5 | . . . . . . . . . . . 4 . . . . . . 1 . . . . . . . . . . Robots Built . | . . . . . . . . . . . . . . . . . . . . . . . . . . . . . Authchips . | . . . . . . . . . . . . . . . . . . . . . . . . . . . . . Time . | . . . . . . . . . . . . . . . . . . . . . . . . . . . . . Total Robot Build Rating . | . . . . . . . . . . . . . . . . . . . . . . . . . . . . . Part Schematics Acquired 33 | . . . . . . . . 1 . . 13 . 2 . 5 . . 12 . . . . . . . . . . Parts Built 8 | . . . . . . . . . . . . . 4 . 3 . . . . . . . . . . . 1 . Authchips . | . . . . . . . . . . . . . . . . . . . . . . . . . . . . . Time 704 | . . . . . . . . . . . . . 353 . 199 . . . . . . . . . . . 152 . Total Part Build Rating 39 | . . . . . . . . . . . . . 24 . 10 . . . . . . . . . . . 5 . Part Studies Acquired 7 | . . . 2 . . . 1 . . . . . . . 1 . . . . . . . . . 3 . . . Parts Repaired 3 | . . . 1 . . . 1 . . . . . . . . . . . . . . . . . . . 1 . Time 96 | . . . 26 . . . 44 . . . . . . . . . . . . . . . . . . . 26 . Parts Recycled . | . . . . . . . . . . . . . . . . . . . . . . . . . . . . . Recycled Matter . | . . . . . . . . . . . . . . . . . . . . . . . . . . . . . Retrieved Matter . | . . . . . . . . . . . . . . . . . . . . . . . . . . . . . Retrieved Components 9 | . . . . . . . 9 . . . . . . . . . . . . . . . . . . . . . Parts Scanalyzed . | . . . . . . . . . . . . . . . . . . . . . . . . . . . . . Part Schematics Acquired . | . . . . . . . . . . . . . . . . . . . . . . . . . . . . . Parts Damaged . | . . . . . . . . . . . . . . . . . . . . . . . . . . . . . Bothacking | -11 -10 -10 -9 -9 -9 -8 -8 -7 -7 -7 -7 -6 -6 -6 -6 -6 -6 -6 -6 -5 -5 -5 -5 -5 -4 -4 -4 -4 ------------ Run | Yrd Mat Min Mat Min Exi Min Mat Fac Low Low Dat Pro Fac Was Fac Low Low Zio Dee Pro Fac Ext Cet Arc Fac Gar Fac Arm Used RIF Installer . | . . . . . . . . . . . . . . . . . . . . . . . . . . . . . Robots Hacked . | . . . . . . . . . . . . . . . . . . . . . . . . . . . . . Non-combat . | . . . . . . . . . . . . . . . . . . . . . . . . . . . . . Combat . | . . . . . . . . . . . . . . . . . . . . . . . . . . . . . Robot Hacks Applied . | . . . . . . . . . . . . . . . . . . . . . . . . . . . . . Relay Couplers Released 3 | . . . . . . . . . . . . . . . . . . . . . . . . . . 3 . . Programmers 3 | . . . . . . . . . . . . . . . . . . . . . . . . . . 3 . . Fabnet Peak Effective % . | . . . . . . . . . . . . . . . . . . . . . . . . . . . . . Robots Rewired 11 | . . . . . . . . . . . . . . . . . . . . . . 7 . . . . . 4 Allies Hacked . | . . . . . . . . . . . . . . . . . . . . . . . . . . . . . Hacks Repelled . | . . . . . . . . . . . . . . . . . . . . . . . . . . . . . Allies | -11 -10 -10 -9 -9 -9 -8 -8 -7 -7 -7 -7 -6 -6 -6 -6 -6 -6 -6 -6 -5 -5 -5 -5 -5 -4 -4 -4 -4 -------- Run | Yrd Mat Min Mat Min Exi Min Mat Fac Low Low Dat Pro Fac Was Fac Low Low Zio Dee Pro Fac Ext Cet Arc Fac Gar Fac Arm Total Allies 36 | . . . . 1 . . . . . . . . 3 . 1 . . . . . . 16 6 . . 2 3 4 Largest Group 10 | . . . . 1 . . . . . . . . 3 . 1 . . . . . . 10 4 3 2 2 1 4 Highest-Rated Group 411 | . . . . 31 . . . . . . . . 78 . 10 . . . . . . 411 384 288 192 75 64 188 Highest-Rated Ally 159 | . . . . 31 . . . . . . . . 26 . 10 . . . . . . 159 134 96 96 46 64 47 Total Orders 11 | . . . . . . . . . . . . . . . . . . . . . . . . 2 2 1 . 6 STAY 3 | . . . . . . . . . . . . . . . . . . . . . . . . 1 . . . 2 ROAM 1 | . . . . . . . . . . . . . . . . . . . . . . . . . . . . 1 FOLLOW 3 | . . . . . . . . . . . . . . . . . . . . . . . . 1 . . . 2 EXPLORE 2 | . . . . . . . . . . . . . . . . . . . . . . . . . 1 . . 1 RETURN 2 | . . . . . . . . . . . . . . . . . . . . . . . . . 1 1 . . Ally Attacks 204 | . . . . 2 . . . . . . . . . . . . . . . . . 82 62 21 5 5 11 16 Total Damage 4961 | . . . . 40 . . . . . . . . . . . . . . . . . 1156 1817 844 187 127 387 403 Kills 25 | . . . . . . . . . . . . . . . . . . . . . . 11 7 2 2 1 . 2 Allies Corrupted . | . . . . . . . . . . . . . . . . . . . . . . . . . . . . . Allies Melted . | . . . . . . . . . . . . . . . . . . . . . . . . . . . . . Field Lobotomies 4 | . . . . . . . . . . . . . . . . . . . . . . . 1 . . . 3 . Intel | -11 -10 -10 -9 -9 -9 -8 -8 -7 -7 -7 -7 -6 -6 -6 -6 -6 -6 -6 -6 -5 -5 -5 -5 -5 -4 -4 -4 -4 ------- Run | Yrd Mat Min Mat Min Exi Min Mat Fac Low Low Dat Pro Fac Was Fac Low Low Zio Dee Pro Fac Ext Cet Arc Fac Gar Fac Arm Active Infowar (turns) 12658 | 166 631 263 809 29 5 . 34 209 204 212 32 164 598 130 375 460 224 4280 466 . 233 326 . . 435 661 845 867 Sensors 8971 | . . . . . . . . 209 204 212 32 164 468 130 375 460 224 4280 351 . . 79 . . 192 25 834 732 Terrain 1078 | . . . . . . . . . . . . . . . . . . . 115 . 233 247 . . 422 . . 61 Traps 1771 | . . . . . . . . . . . . . . . . . . . . . 171 241 . . . 637 629 93 Seismic 2224 | 166 631 263 809 29 . . 34 . . . . . 130 . 162 . . . . . . . . . . . . . Machine Analysis 77 | . . . . . . . . . . . . . . . . . . . . . . . . . . . . 77 Cloaking 440 | . . . . . 5 . . . . . . . . . . . . . . . . . . . . . 435 . Robot Analysis Total 3 | . 2 . 1 . . . . . . . . . . . . . . . . . . . . . . . . . Derelict Logs Recovered 8 | . . 2 . . . . . . . . . 2 . . . 1 . 2 . 1 . . . . . . . . Drone Launches 4 | . . . . . . . . . . . . . . . . . . . . . . . . . 1 1 . 2 Drone Recoveries 2 | . . . . . . . . . . . . . . . . . . . . . . . . . 1 1 . . Exploration | -11 -10 -10 -9 -9 -9 -8 -8 -7 -7 -7 -7 -6 -6 -6 -6 -6 -6 -6 -6 -5 -5 -5 -5 -5 -4 -4 -4 -4 ------------- Run | Yrd Mat Min Mat Min Exi Min Mat Fac Low Low Dat Pro Fac Was Fac Low Low Zio Dee Pro Fac Ext Cet Arc Fac Gar Fac Arm Turns Passed 27933 | 220 670 263 1883 693 2984 56 2007 249 204 212 32 164 639 132 502 460 224 4280 2947 1578 305 1344 1344 402 876 921 1001 1341 Spaces Moved 14990 | 108 184 153 749 325 1484 18 635 481 392 537 111 328 1321 414 1115 553 201 1476 1085 314 150 577 321 193 310 378 411 666 Core 5 | 4 . . . . . . . . . . . . . . . . . . . . . . . . . . . 1 Treads 3986 | 104 184 153 749 325 862 . . . . . . . . . . . . . . 148 . . 87 193 293 378 411 99 Legs 3135 | . . . . . 622 18 635 11 . . . . . . . . . 1 704 166 150 577 234 . 17 . . . Wheels . | . . . . . . . . . . . . . . . . . . . . . . . . . . . . . Hover 566 | . . . . . . . . . . . . . . . . . . . . . . . . . . . . 566 Flight 7298 | . . . . . . . . 470 392 537 111 328 1321 414 1115 553 201 1475 381 . . . . . . . . . Fastest Speed 28 | 50 160 160 160 160 120 266 266 28 28 28 28 28 28 28 28 28 101 29 32 135 176 176 160 160 160 155 152 52 Average Speed 141 | 155 160 160 160 160 173 266 269 34 31 28 28 28 28 28 28 60 101 276 252 249 176 180 196 160 164 159 155 142 Slowest Speed 525 | 160 160 160 160 160 266 266 270 130 98 28 98 98 98 28 100 101 101 460 385 525 178 210 240 160 280 160 250 377 Overloaded Moves . | . . . . . . . . . . . . . . . . . . . . . . . . . . . . . Propulsion Burnouts . | . . . . . . . . . . . . . . . . . . . . . . . . . . . . . Robots Hopped 37 | . . . . . . . . 2 . 1 . 2 11 2 19 . . . . . . . . . . . . . Potential Cave-ins 22 | . . . . 1 . . . . . 2 . . . . 2 . . . . . . 9 . . 2 . 2 4 Cave-ins Triggered 2 | . . . . . . . . . . . . . . . . . . . . . . 1 . . 1 . . . Exploration Rate (%) 50 | 6 35 36 69 60 92 7 54 15 42 70 70 52 27 96 34 67 50 85 80 60 6 62 85 95 15 39 15 27 Regions Visited 28 Branch Regions 17 Pre-discovered Areas 3 | . . . . . 1 . . . . . 1 1 . . . . . . . . . . . . . . . . Known Exits Taken 16 | . 1 . 1 . . . . 1 1 1 1 1 . . 1 1 1 1 1 1 1 . . . 1 . 1 . Unknown Exits Taken 9 | 1 . 1 . 1 1 1 1 . . . . . . . . . . . . . . 1 1 1 . . . . Scrap Searched 20 | . . 1 . 2 . 1 . . 2 5 . 1 . . . 3 . 4 . 1 . . . . . . . . Spaces Dug 321 | . 2 . 18 24 7 . 7 8 6 11 . . 33 3 32 18 34 . 13 . 10 19 . . 15 14 15 32 Terrain Destroyed 947 | . 20 . 36 103 34 1 7 8 8 12 . . 33 3 58 18 34 . 53 48 13 163 42 8 62 81 51 51 Melee 144 | . . . 11 2 . . 7 8 3 2 . . 33 3 27 14 . . 9 . . . . . 1 9 1 14 Projectile 274 | . 2 . . . 12 1 . . 1 7 . . . . 7 4 . . 4 9 13 35 41 8 49 9 50 22 AOE 519 | . 18 . 25 101 20 . . . . . . . . . 24 . 34 . 40 39 . 128 . . 12 63 . 15 Terrain Rammed . | . . . . . . . . . . . . . . . . . . . . . . . . . . . . . Walls Destroyed . | . . . . . . . . . . . . . . . . . . . . . . . . . . . . . Machines Disabled . | . . . . . . . . . . . . . . . . . . . . . . . . . . . . . Actions | -11 -10 -10 -9 -9 -9 -8 -8 -7 -7 -7 -7 -6 -6 -6 -6 -6 -6 -6 -6 -5 -5 -5 -5 -5 -4 -4 -4 -4 --------- Run | Yrd Mat Min Mat Min Exi Min Mat Fac Low Low Dat Pro Fac Was Fac Low Low Zio Dee Pro Fac Ext Cet Arc Fac Gar Fac Arm Total 20063 | 130 516 165 1317 441 1758 21 814 545 451 571 111 396 1493 420 1197 648 217 1602 1273 1078 177 799 936 239 529 608 666 945 Wait 3107 | . 293 3 421 68 47 1 75 14 30 2 . 70 92 . 20 53 8 65 103 729 5 65 515 20 87 99 134 88 Move 14890 | 107 183 152 748 324 1483 17 634 476 391 534 110 323 1299 409 1078 552 200 1475 1084 313 149 575 320 192 309 377 410 666 Hop 35 | . . . . . . . . 2 . 1 . 2 11 2 17 . . . . . . . . . . . . . Pick Up 282 | 2 5 3 24 3 67 . 16 8 . . . . 9 1 7 4 2 12 23 2 4 8 10 2 11 18 20 21 Fast Attach 99 | 6 2 1 4 . 6 . 1 6 . . . . 5 . 3 1 . 3 7 2 . 5 4 . 9 4 7 23 Attach 109 | . 2 . 4 3 5 . 2 5 4 4 1 . 9 . 9 6 . . 3 4 2 4 4 . 10 9 6 13 Detach 96 | . . . . . 1 . . 8 5 4 . 1 9 . 4 5 . . 6 6 2 16 12 . . 5 . 12 Swap 215 | . 4 3 15 12 15 . 21 6 . . . . 11 3 9 1 1 5 5 3 3 10 11 1 20 20 22 14 Drop 188 | . . . 22 1 36 . 9 9 . . . . 8 2 5 2 2 5 22 . 1 4 10 2 6 16 7 19 Fire 623 | 15 27 . 11 28 88 3 47 1 18 24 . . . . 9 3 2 . 7 10 11 46 50 22 72 36 54 39 Melee 288 | . . 3 68 2 10 . 9 8 3 2 . . 40 3 35 21 2 . 10 9 . . . . 3 24 3 33 Ram . | . . . . . . . . . . . . . . . . . . . . . . . . . . . . . Kick . | . . . . . . . . . . . . . . . . . . . . . . . . . . . . . Crush 4 | . . . . . . . . . . . . . . . . . . . . . . . . . 1 . 3 . Escape Stasis 7 | . . . . . . . . . . . . . . . . . . . . . . 6 . . 1 . . . Rewire 77 | . . . . . . . . . . . . . . . . . . . . . . 60 . . . . . 17 Trap 3 | . . . . . . . . . . . . . . . . . . . 3 . . . . . . . . . Miscellaneous 40 | . . . . . . . . 2 . . . . . . 1 . . 37 . . . . . . . . . . Route ------- -11/Scrapyard -10/Materials -10/Mines -9/Materials (discovered 4 exits: *Mat x2 / *Min / *Sto) -9/Mines -9/Exiles (discovered 2 exits: [*Min x2]) -8/Mines -8/Materials -7/Factory (discovered 2 exits: *Low x2) -7/Lower Caves -7/Lower Caves (discovered 2 exits: *Fac / *Dat) -7/Data Miner -6/Proximity Caves -6/Factory -6/Waste -6/Factory (discovered 4 exits: *Fac x2 / *Low x2) -6/Lower Caves -6/Lower Caves -6/Zion (discovered 2 exits: *Dee / *Pro) -6/Deep Caves -5/Proximity Caves -5/Factory (discovered 2 exits: Upp / *Ext) -5/Extension (discovered 2 exits: *Fac / *Cet) -5/Cetus (discovered 2 exits: *Fac / *Arc) -5/Archives (discovered 3 exits: *Fac / [*Hub x2]) -4/Factory (discovered 3 exits: *Res x2 / Gar) -4/Garrison -4/Factory (discovered 3 exits: Upp x2 / *Arm) -4/Armory History --------- Turn | Location | Event 14 | -11/Scrapyard | Discovered new exit (range 15) 221 | -11/Scrapyard | Entered Materials 313 | -10/Materials | Build established: Mutant 430 | -10/Materials | Core integrity fell below 50% 454 | -10/Materials | Discovered new exit (range 15) 479 | -10/Materials | Identified exit to Mines 891 | -10/Materials | Entered Mines 892 | -10/Mines | Met a Derelict bent on vengeance 935 | -10/Mines | Learned Materials emergency access door positions 977 | -10/Mines | Met a Derelict shopkeep closing up shop 1047 | -10/Mines | Learned 2 Materials zone layouts 1065 | -10/Mines | A weapon hastily lodged in a ceiling crevice suddenly fell to the ground 1140 | -10/Mines | Discovered new exit (range 12) 1154 | -10/Mines | Entered Materials 1154 | -9/Materials | Evolved 2 slots: Propulsion x1, Weapon x1 1170 | -9/Materials | Identified exit to Mines 1170 | -9/Materials | Identified exit to Storage 1171 | -9/Materials | Build established: Scavenger-Mutant 1608 | -9/Materials | Discovered new exit (range 5) 2236 | -9/Materials | Repaired Lgt. Treads 2301 | -9/Materials | Discovered new exit (range 9) 2765 | -9/Materials | Build established: Mutant 3037 | -9/Materials | Entered Mines 3040 | -9/Mines | Core integrity fell below 50% 3042 | -9/Mines | Escorted by a lone wolf Derelict 3064 | -9/Mines | Destroyed YI-UF0 3184 | -9/Mines | Assembled infested the area 3252 | -9/Mines | Destroyed 17 combat bots 3496 | -9/Mines | Build established: Tank 3559 | -9/Mines | Found a hidden stash of uninstalled traps 3724 | -9/Mines | Deemed a non-threat by the Exiles lab entrance 3724 | -9/Mines | Discovered new exit (range 5) 3730 | -9/Mines | Entered Exiles 3769 | -9/Exiles | Met 8R-AWN 3796 | -9/Exiles | Met EX-HEX 3863 | -9/Exiles | Met EX-BIN 3906 | -9/Exiles | Met EX-DEC 3915 | -9/Exiles | Learned location of Zion (-6) 3955 | -9/Exiles | Build established: Mutant 3967 | -9/Exiles | Aligned with FarCom system 3968 | -9/Exiles | Given EX-Vault access code 4005 | -9/Exiles | Opened EX-Vault 4016 | -9/Exiles | Found Cloak of Protection 4025 | -9/Exiles | Found Potential Leg 4066 | -9/Exiles | Warned to stay clear of 0b10 Research branches 4465 | -9/Exiles | Discovered new exit (range 15) 4510 | -9/Exiles | Build established: Gunner 5098 | -9/Exiles | Attacked by the Exiles 5209 | -9/Exiles | Core integrity fell below 20% 5213 | -9/Exiles | Build established: Tank 5277 | -9/Exiles | Destroyed 8R-AWN 5285 | -9/Exiles | Found Prototype Processor 5287 | -9/Exiles | Found Prototype Ballistic Gun 5287 | -9/Exiles | Identified 8R-AWN's Boregun 5301 | -9/Exiles | Lost 6 parts (1p1n2u2w) 5591 | -9/Exiles | Destroyed EX-DEC 5633 | -9/Exiles | Destroyed EX-BIN 5672 | -9/Exiles | Destroyed EX-HEX 5685 | -9/Exiles | Found Prototype Device 5685 | -9/Exiles | Identified System Purifier 5827 | -9/Exiles | Build established: Scavenger-Gunner 5952 | -9/Exiles | Found Prototype Protection 6173 | -9/Exiles | Build established: Hauler-Gunner 6682 | -9/Exiles | Discovered new exit (range 14) 6714 | -9/Exiles | Entered Mines 6759 | -8/Mines | Discovered new exit (range 4) 6770 | -8/Mines | Entered Materials 6770 | -8/Materials | Evolved 2 slots: Propulsion x1, Utility x1 7095 | -8/Materials | Build established: Scavenger-Gunner 7193 | -8/Materials | Repaired Mak. Leg 7591 | -8/Materials | Discovered new exit (range 3) 7786 | -8/Materials | Identified Exp. Targeting Computer 8028 | -8/Materials | Build established: Hauler-Mutant 8398 | -8/Materials | Build established: Scavenger-Gunner 8777 | -8/Materials | Entered Factory 8777 | -7/Factory | Evolved 2 slots: Utility x2 8973 | -7/Factory | Identified exit to Lower Caves 9026 | -7/Factory | Entered Lower Caves 9034 | -7/Lower Caves | Spotted B-75 Beast 9227 | -7/Lower Caves | Discovered new exit (range 11) 9230 | -7/Lower Caves | Identified exit to Lower Caves 9230 | -7/Lower Caves | Entered another Lower Caves area 9231 | -7/Lower Caves | Encountered a Warlord checkpoint 9232 | -7/Lower Caves | Discovered new exit (range 7) 9234 | -7/Lower Caves | Identified exit to Factory 9414 | -7/Lower Caves | Discovered new exit (range 3) 9414 | -7/Lower Caves | Identified exit to Data Miner 9442 | -7/Lower Caves | Entered Data Miner 9442 | -7/Data Miner | Discovered new exit (range 6) 9444 | -7/Data Miner | Identified exit to Proximity Caves 9448 | -7/Data Miner | Met Data Miner 9453 | -7/Data Miner | Learned location of Section 7 (-2) 9458 | -7/Data Miner | Received God Mode back door access code from Data Miner 9464 | -7/Data Miner | Acquired the access code to Warlord's prototype stash 9474 | -7/Data Miner | Entered Proximity Caves 9516 | -6/Proximity Caves | Attracted the attention of an 0b10 checkpoint 9560 | -6/Proximity Caves | Learned Factory stockpile data 9583 | -6/Proximity Caves | Spotted B-75 Beast 9636 | -6/Proximity Caves | Discovered exit to Factory (range 8) 9638 | -6/Proximity Caves | Entered Factory 9638 | -6/Factory | Evolved 2 slots: Utility x2 9771 | -6/Factory | EX Chip 1 fried by hacking feedback 9800 | -6/Factory | Incoming investigation squad redirected 9823 | -6/Factory | Incoming investigation squad redirected 9835 | -6/Factory | Incoming investigation squad redirected 9839 | -6/Factory | Incoming investigation squad redirected 9907 | -6/Factory | Fabricated Adv. Hacking Suite (x1) 9927 | -6/Factory | Fabricated Adv. Hacking Suite (x1) 10013 | -6/Factory | Build established: Hacker-Sprinter 10132 | -6/Factory | Fabricated Adv. Hacking Suite? 10223 | -6/Factory | Spotted B-75 Beast 10267 | -6/Factory | Fabricated Adv. Hacking Suite (x1) 10277 | -6/Factory | Sucked down chute 10277 | -6/Factory | Entered Waste 10277 | -6/Waste | The area was eerily silent 10309 | -6/Waste | Discovered new exit (range 13) 10317 | -6/Waste | Identified exit to Factory 10409 | -6/Waste | Entered Factory 10412 | -6/Factory | Identified exit to Lower Caves 10437 | -6/Factory | Allied Derelicts emerged from ambush trap array 10481 | -6/Factory | Imp. System Shield fried by hacking feedback 10542 | -6/Factory | Lost 3 allies 10583 | -6/Factory | Fabricated Tri-rail Accelerator? 10696 | -6/Factory | Central database locked down 10714 | -6/Factory | Fabricated Tri-rail Accelerator? 10765 | -6/Factory | Discovered new exit (range 11) 10809 | -6/Factory | Fabricated Plasma Cutter? 10813 | -6/Factory | Lost 3 parts (1p2u) 10829 | -6/Factory | Discovered new exit (range 4) 10829 | -6/Factory | Identified exit to Factory 10911 | -6/Factory | Entered Lower Caves 11009 | -6/Lower Caves | Attracted the attention of an 0b10 outpost 11188 | -6/Lower Caves | Encountered a Warlord checkpoint 11343 | -6/Lower Caves | Discovered new exit (range 7) 11348 | -6/Lower Caves | Identified exit to Lower Caves 11362 | -6/Lower Caves | Build established: Hacker-Mutant 11371 | -6/Lower Caves | Entered another Lower Caves area 11580 | -6/Lower Caves | Discovered new exit (range 15) 11594 | -6/Lower Caves | Identified exit to Zion 11595 | -6/Lower Caves | Entered Zion 11605 | -6/Zion | System corruption cleaned by Quarantine Array 11856 | -6/Zion | Discovered new exit (range 11) 11873 | -6/Zion | Identified exit to Proximity Caves 12119 | -6/Zion | Found CR-A16's Pointy Stick 12241 | -6/Zion | Given the Hacking Drone Bay 12242 | -6/Zion | Found Prototype Device 12377 | -6/Zion | Found Prototype Special Weapon 12381 | -6/Zion | Found Prototype Special Weapon 12385 | -6/Zion | Found Prototype Special Weapon 12389 | -6/Zion | Found Prototype Special Weapon 12389 | -6/Zion | Identified RU-N14's Throwing Claymores (x4) 12612 | -6/Zion | Learned location of 1 exit from Lower Caves 12678 | -6/Zion | Build established: Hacker-Skirmisher 14232 | -6/Zion | Discovered new exit (range 3) 14232 | -6/Zion | Saw the warning signs outside the Deep Caves entrance 14235 | -6/Zion | Identified exit to Deep Caves 15439 | -6/Zion | Met Imprinter 15875 | -6/Zion | Entered Deep Caves 16357 | -6/Deep Caves | Attacked by Z-Imprinter 16364 | -6/Deep Caves | Destroyed Z-Imprinter 16534 | -6/Deep Caves | Build established: Hacker-Gunner 16691 | -6/Deep Caves | Z-Facility disabled 17921 | -6/Deep Caves | Found Surveybot 24 Scanner 17926 | -6/Deep Caves | Found Surveybot 24 Chip 17929 | -6/Deep Caves | Discovered new exit (range 8) 18235 | -6/Deep Caves | Build established: Hacker-Mutant 18494 | -6/Deep Caves | Identified exit to Proximity Caves 18600 | -6/Deep Caves | Spotted AG-31506 18663 | -6/Deep Caves | Core integrity fell below 50% 18697 | -6/Deep Caves | Found GOLEM Unit 18739 | -6/Deep Caves | Found Field Lobotomy Kit 18740 | -6/Deep Caves | Triggered Deep Caves wall 18818 | -6/Deep Caves | System corruption reached 10% 18822 | -6/Deep Caves | Entered Proximity Caves 18850 | -5/Proximity Caves | Lost 5 parts (1n4u) 18906 | -5/Proximity Caves | Attracted the attention of an 0b10 checkpoint 19389 | -5/Proximity Caves | Build established: Golem 19823 | -5/Proximity Caves | Spotted B-75 Beast 19866 | -5/Proximity Caves | Revealed the true nature of CR-A16's Pointy Stick 19873 | -5/Proximity Caves | Destroyed B-75 Beast 20191 | -5/Proximity Caves | Learned Factory interactive machine intel 20375 | -5/Proximity Caves | Discovered exit to Factory (range 14) 20400 | -5/Proximity Caves | Entered Factory 20400 | -5/Factory | Evolved 2 slots: Power x1, Utility x1 20401 | -5/Factory | Identified exit to Upper Caves 20401 | -5/Factory | Identified exit to Extension 20402 | -5/Factory | Loaded intel: 56 interactive machine locations 20616 | -5/Factory | Unchained authorized (6S-H0T) 20705 | -5/Factory | Entered Extension 20922 | -5/Extension | Unchained authorized (6S-H0T) 21280 | -5/Extension | Rescued A7 21294 | -5/Extension | Rescued a captive Derelict 21295 | -5/Extension | Rescued a captive Derelict 21334 | -5/Extension | Rescued a captive Derelict 21341 | -5/Extension | Rescued a captive Derelict 21503 | -5/Extension | Found Prototype Protection 21503 | -5/Extension | Identified Med. Regenerative Plating 21552 | -5/Extension | Rescued a captive Derelict 21553 | -5/Extension | Rescued a captive Derelict 21612 | -5/Extension | Crushed by falling debris 21648 | -5/Extension | Rescued a captive Derelict 21649 | -5/Extension | Rescued a captive Derelict 21826 | -5/Extension | Lost 3 parts (2u1w) 21828 | -5/Extension | Lost 3 allies 21900 | -5/Extension | Energy Cycler disabled 22018 | -5/Extension | Discovered new exit (range 10) 22020 | -5/Extension | Discovered new exit (range 6) 22049 | -5/Extension | Entered Cetus 22049 | -5/Cetus | Accompanied by 4 allies (A7) 22054 | -5/Cetus | Acquired a Cetus Manufacturing Module code from A7 22580 | -5/Cetus | Spotted Cetus Guard 22580 | -5/Cetus | Spotted Cetus Guard 22583 | -5/Cetus | Spotted Cetus Guard 22584 | -5/Cetus | Spotted Cetus Guard 22590 | -5/Cetus | Destroyed Cetus Guard 22599 | -5/Cetus | Destroyed Cetus Guard 22614 | -5/Cetus | Destroyed Cetus Guard 22626 | -5/Cetus | Destroyed Cetus Guard 22631 | -5/Cetus | Extracted ID and sensor layout for unrecognized location from A7's data core 22638 | -5/Cetus | Lost 3 allies 22799 | -5/Cetus | Security sweep announced 23017 | -5/Cetus | Started Cetus Manufacturing Module 23042 | -5/Cetus | Manufactured an Enhanced Grunt 23067 | -5/Cetus | Manufactured an Enhanced Grunt 23092 | -5/Cetus | Manufactured an Enhanced Grunt 23117 | -5/Cetus | Manufactured an Enhanced Grunt 23126 | -5/Cetus | Discovered new exit (range 16) 23142 | -5/Cetus | Manufactured an Enhanced Grunt 23189 | -5/Cetus | Build established: Scavenger-Tank 23193 | -5/Cetus | Spotted Cetus Guard 23194 | -5/Cetus | Spotted Cetus Guard 23196 | -5/Cetus | Assimilated Cetus Guard with FLK Orb 23200 | -5/Cetus | Allies destroyed Cetus Guard 23205 | -5/Cetus | Spotted Cetus Guard 23207 | -5/Cetus | Destroyed Cetus Guard 23209 | -5/Cetus | Spotted Cetus Guard 23210 | -5/Cetus | Destroyed Cetus Guard 23220 | -5/Cetus | Discovered new exit (range 15) 23230 | -5/Cetus | Met Revision 17 23312 | -5/Cetus | Found Prototype Device 23312 | -5/Cetus | Identified Exp. Thermal Shield 23393 | -5/Cetus | Entered Archives 23393 | -5/Archives | Accompanied by 3 allies 23457 | -5/Archives | Unable to access archive contents 23480 | -5/Archives | Unable to access archive contents 23483 | -5/Archives | Discovered new exit (range 15) 23536 | -5/Archives | Unable to access archive contents 23539 | -5/Archives | Discovered new exit (range 16) 23576 | -5/Archives | Discovered new exit (range 16) 23795 | -5/Archives | Entered Factory 23795 | -4/Factory | Accompanied by 3 allies 23795 | -4/Factory | Evolved 2 slots: Propulsion x2 23849 | -4/Factory | Lost 3 allies 24001 | -4/Factory | Unchained authorized (6S-H0T) 24461 | -4/Factory | Crushed by falling debris 24462 | -4/Factory | System corruption reached 10% 24496 | -4/Factory | Identified Hacking Drone Bay 24511 | -4/Factory | Lost 4 parts (1p3u) 24539 | -4/Factory | Discovered new exit (range 29) 24542 | -4/Factory | Discovered new exit (range 19) 24572 | -4/Factory | Identified exit to Research 24671 | -4/Factory | Identified exit to Garrison 24671 | -4/Factory | Entered Garrison 24815 | -4/Garrison | Rescued a captive Derelict 24819 | -4/Garrison | Rescued a captive Derelict 25023 | -4/Garrison | Spotted B-86 Titan 25079 | -4/Garrison | Destroyed B-86 Titan 25099 | -4/Garrison | Triggered checkpoint 25101 | -4/Garrison | Triggered checkpoint 25105 | -4/Garrison | Triggered checkpoint 25155 | -4/Garrison | Destroyed 8 combat bots 25208 | -4/Garrison | Destroyed 7 combat bots 25280 | -4/Garrison | Discovered new exit (range 8) 25289 | -4/Garrison | Identified exit to Factory 25592 | -4/Garrison | Entered Factory 25640 | -4/Factory | Repaired Hcp. Storage Unit 25861 | -4/Factory | Fabricated Exp. Targeting Computer? 26419 | -4/Factory | Build established: Skirmisher 26426 | -4/Factory | Identified exit to Upper Caves 26426 | -4/Factory | Identified exit to Armory 26434 | -4/Factory | Cargo convoy interrupted 26436 | -4/Factory | Spotted Striker 26514 | -4/Factory | Assimilated Y-64 Sentinel with FLK Orb 26529 | -4/Factory | Assimilated H-77 Assassin with FLK Orb 26534 | -4/Factory | Lost 5 parts (1p1n1u2w) 26574 | -4/Factory | Assimilated Y-72 Warden with FLK Orb 26592 | -4/Factory | Core integrity fell below 50% 26593 | -4/Factory | Entered Armory 26621 | -4/Armory | Lost 5 parts (1p1n1u2w) 26657 | -4/Armory | Energy Cycler disabled 27588 | -4/Armory | Core integrity fell below 20% 27618 | -4/Armory | Lost 6 parts (1p2n1u2w) 27680 | -4/Armory | Lost 3 parts (1n2u) 27847 | -4/Armory | System corruption reached 30% 27934 | -4/Armory | Destroyed by P-70 Sage with Tesla Rifle Last Messages --------------- 27879_ G-67 Veteran suffers critical hit (Burn). 27885_ System corrupted: Substantial component data lost. 27894_ Penetrated by Slug. 27894_ Backup Propulsion III destroyed. 27894_ Dropped Mic. Fission Core. 27900_ System corrupted: Matter fused (-7). 27900_ Penetrated by Slug. 27902_ Dropped Enh. Force Lance. 27903_ Dropped Enh. Nova Cannon. 27903_ Acquired Seismic Detector. 27906_ W-44 Eye sends out distress signal. 27916_ System corrupted: Substantial component data lost. 27922_ Med. Regenerative Plating destroyed. 27922_ Penetrated by Slug. 27922_ Adv. Terrain Scanner destroyed. 27925_ ALERT: Suspicious intruders detected, dispatching Cutter reinforcements to area. 27934_ 8OSAX7FRIT